bitfinex/quotes_ETHUSD_20250602
["timestamp","ask_amount","ask_price","bid_price","bid_amount"]
[1748835431433,6.22742926,2497.6,2497.0,2.40283177]
[1748835431606,0.8016,2497.5,2497.0,2.40283177]
[1748835432000,0.8016,2497.3,2496.9,1.112]
[1748835432195,0.8016,2497.3,2496.8,2.40307513]
[1748835432400,1.12200131,2497.3,2496.8,2.40307513]
[1748835432596,1.12200131,2497.3,2496.6,2.40326112]
[1748835432597,1.12200131,2497.3,2496.9,2.40297779]
[1748835433198,1.12200131,2497.3,2496.7,1.112]
[1748835433427,0.8016,2497.3,2497.0,2.40280084]
[1748835433849,0.8016,2497.3,2497.1,2.40276617]
[1748835434016,0.8016,2497.3,2497.0,2.40286846]
[1748835434557,0.7807,2497.6,2497.3,2.4025266]
[1748835434765,0.7807,2497.6,2497.5,2.4024024]
[1748835435053,0.7542,2497.8,2497.3,2.40259218]
[1748835435258,0.7542,2497.8,2497.4,2.40244847]
[1748835435474,0.7542,2497.8,2497.5,2.40235928]
[1748835435826,0.7542,2497.8,2497.1,4.174]
[1748835435827,0.7542,2497.8,2497.4,2.40245833]
[1748835436168,0.7542,2497.8,2497.3,2.40254408]
[1748835436169,1.07081366,2497.8,2497.3,2.40254408]
[1748835436722,3.47293889,2497.8,2497.0,0.7778]
[1748835436921,6.20262926,2497.6,2496.8,0.7764]
[1748835437170,8.6049358,2497.6,2496.9,3.51397969]
[1748835437373,3.15814033,2497.5,2496.9,3.51397969]
[1748835437576,0.7557,2497.5,2497.0,2.40285253]
[1748835437873,0.7557,2497.5,2497.2,2.40261985]
[1748835438741,0.7557,2497.5,2497.0,2.40286827]
[1748835438942,0.7557,2497.5,2497.1,2.40278723]
[1748835439279,3.53783745,2497.8,2497.2,2.40263636]
[1748835439443,1.15478375,2497.7,2497.2,2.40263636]
[1748835439843,3.22122463,2497.8,2497.2,2.40261268]
[1748835440571,0.8191,2497.8,2497.4,2.40248506]
[1748835440738,0.8191,2497.8,2497.6,2.40230099]
[1748835440945,0.8191,2497.8,2497.5,2.40236935]
[1748835441475,0.8191,2497.8,2497.5,2.40236331]
[1748835441778,0.8191,2497.8,2497.4,2.40245858]
[1748835442328,0.8191,2497.8,2497.3,2.40255591]
[1748835442527,3.54432104,2497.8,2497.2,2.40262285]
[1748835442852,1.14220343,2497.8,2497.4,2.40244235]
[1748835443054,0.8191,2497.8,2497.5,2.40234723]
[1748835443256,0.8191,2497.8,2497.4,2.40244235]
[1748835443257,0.8191,2497.8,2497.4,2.40246074]
[1748835443858,0.7609,2497.6,2497.1,2.40272921]
[1748835444032,0.7609,2497.6,2497.1,3.51372921]
[1748835444233,3.1632194,2497.6,2497.0,2.40283834]
[1748835444464,0.7609,2497.6,2497.1,2.40276534]
[1748835444659,0.7609,2497.6,2497.2,2.4026399]
[1748835444964,0.7609,2497.6,2497.1,2.40271018]
[1748835445169,0.7609,2497.6,2497.1,2.40278723]
[1748835445329,0.7609,2497.6,2497.2,2.40266692]
[1748835445525,3.16321334,2497.6,2497.0,2.40280593]
[1748835445761,3.16321334,2497.6,2497.1,2.40276738]
[1748835446139,0.7609,2497.6,2497.1,2.40276738]
[1748835446335,3.16321645,2497.6,2497.1,2.40276738]
[1748835446534,0.7609,2497.6,2497.2,2.40268567]
[1748835446761,2.41202154,2497.9,2497.2,2.8832464]
[1748835446942,2.40216783,2497.8,2497.2,2.40263724]
[1748835447345,0.55,2497.7,2497.2,2.40263724]
[1748835448070,0.01,2497.9,2497.3,2.4025311]
[1748835448271,7.84920954,2497.7,2497.1,2.402738]
[1748835448444,5.44692926,2497.7,2496.9,1.70271257]
[1748835448642,5.44692926,2497.7,2497.3,2.40257009]
[1748835448869,5.44692926,2497.7,2497.2,2.40264336]
[1748835449692,0.8324,2497.6,2497.0,0.90956752]
[1748835449872,0.8324,2497.6,2497.3,2.40253861]
[1748835450677,0.8324,2497.6,2497.0,3.312419]
[1748835450876,0.8324,2497.6,2496.9,1.111]
[1748835450877,3.23470648,2497.6,2496.9,1.111]
[1748835451077,3.2347489,2497.6,2497.0,2.40287762]
[1748835451278,2.82134318,2497.5,2497.1,2.40278337]
[1748835451970,3.2347489,2497.6,2497.2,2.40263931]
[1748835451971,0.8324,2497.6,2497.2,2.40263931]
[1748835452644,0.8324,2497.6,2497.1,2.40274069]
[1748835452840,0.8147,2497.2,2496.6,8.8294]
[1748835453181,0.8147,2497.2,2496.8,2.40307593]
[1748835453476,0.8147,2497.2,2496.7,3.51415869]
[1748835453652,0.8147,2497.2,2496.8,2.40307593]
[1748835454058,0.8147,2497.2,2496.9,2.40297969]
[1748835454257,0.8147,2497.2,2496.9,2.99468525]
[1748835454648,0.8147,2497.2,2497.0,2.40288151]
[1748835455648,0.8147,2497.2,2496.9,2.99462307]
[1748835456083,0.8147,2497.2,2497.0,2.40287139]
[1748835456792,0.8147,2497.2,2496.9,0.59170556]
[1748835457002,0.8147,2497.2,2496.9,2.99466956]
[1748835457159,0.8147,2497.2,2497.0,2.40287122]
[1748835457361,0.8147,2497.2,2497.0,2.94263606]
[1748835457883,0.8147,2497.2,2497.1,2.40278723]
[1748835459597,0.8147,2497.2,2497.0,0.53976484]
[1748835459776,0.8147,2497.2,2496.9,2.40293182]
[1748835460099,0.8262,2496.8,2496.0,3.18334615]
[1748835460298,0.8262,2496.8,2496.0,1.8905]
[1748835460529,0.8262,2496.8,2496.4,2.40340687]
[1748835460699,0.8262,2496.8,2496.3,2.4034861]
[1748835460862,2.82134318,2496.7,2496.3,2.4034861]
[1748835461063,2.82134318,2496.7,2496.3,2.4035352]
[1748835461799,2.82134318,2496.7,2496.4,2.40345344]
[1748835462513,2.82134318,2496.7,2496.3,2.4035208]
[1748835462817,2.82134318,2496.7,2496.2,2.40358175]
[1748835463016,2.82134318,2496.7,2496.2,3.07336297]
[1748835463017,5.2245197,2496.7,2496.2,3.07336297]
[1748835463613,2.82134318,2496.7,2496.2,3.07336297]
[1748835465129,2.82134318,2496.7,2496.3,2.40355449]
[1748835465313,0.8262,2496.8,2496.4,2.40343653]
[1748835465527,0.8262,2496.8,2496.4,0.44058932]
[1748835465717,0.8262,2496.8,2496.5,2.40329546]
[1748835465916,0.8262,2496.8,2496.6,2.40326694]
[1748835466217,0.8262,2496.8,2496.4,2.40341807]
[1748835466218,0.8262,2496.8,2496.4,2.40343229]
[1748835466722,2.82134318,2496.7,2496.2,2.40356587]
[1748835466938,0.8306,2496.6,2496.0,3.5148117]
[1748835467094,0.8306,2496.6,2495.8,1.14090773]
[1748835467095,0.8306,2496.2,2495.8,1.14090773]
[1748835467296,0.8306,2496.2,2495.9,2.40389441]
[1748835468005,0.8306,2496.2,2495.8,2.40403759]
[1748835468796,0.8306,2496.2,2495.9,2.40391325]
[1748835469000,0.8306,2496.2,2495.9,2.40392898]
[1748835469337,0.8306,2496.2,2495.9,0.3513929]
[1748835469635,0.8306,2496.2,2495.7,3.51411204]
[1748835469802,0.8306,2496.2,2495.7,3.51411121]
[1748835469998,0.8306,2496.2,2495.8,2.4039704]
[1748835470203,0.8306,2496.2,2495.9,2.40393586]
[1748835471039,0.8306,2496.2,2495.7,3.51412647]
[1748835471040,0.8306,2496.2,2495.8,2.40400308]
[1748835471854,0.8306,2496.2,2495.9,2.40392776]
[1748835472462,0.8306,2496.2,2495.8,2.40401179]
[1748835472643,0.8306,2496.2,2495.8,2.88482562]
[1748835474564,5.22483105,2496.4,2495.3,3.22987916]
[1748835474565,2.82134318,2496.0,2495.3,0.40853598]
[1748835474768,0.8255,2495.7,2495.1,0.01]
[1748835474964,0.8255,2495.6,2495.1,2.41470827]
[1748835475169,3.64684318,2495.6,2495.2,1.10627083]
[1748835475784,3.64684318,2495.6,2495.1,2.41470932]
[1748835476349,3.64684318,2495.6,2495.2,2.40457472]
[1748835477465,3.64684318,2495.6,2495.1,0.01]
[1748835477466,0.8255,2495.6,2495.1,0.01]
[1748835477639,0.6255,2495.6,2495.4,2.40437732]
[1748835477828,0.6255,2495.6,2495.1,0.01]
[1748835478029,0.6255,2495.6,2495.4,2.40436677]
[1748835478334,2.82134318,2496.4,2495.2,7.76784318]
[1748835478533,2.82134318,2496.4,2495.9,2.40388049]
[1748835478923,8.0,2496.3,2495.9,2.40388049]
[1748835479363,2.40353731,2496.4,2495.8,2.40400337]
[1748835479564,2.95356188,2496.3,2495.8,2.40400337]
[1748835480149,2.40366618,2496.2,2495.6,2.40416698]
[1748835480349,10.95359841,2496.3,2495.6,2.40416698]
[1748835480558,0.7851,2496.1,2495.7,2.40412061]
[1748835480734,0.7851,2496.1,2495.6,2.4041623]
[1748835481241,0.7851,2496.1,2495.6,3.01258212]
[1748835481444,0.7851,2496.1,2495.7,2.40412948]
[1748835481967,0.7851,2496.1,2495.8,2.40402956]
[1748835482476,0.7851,2496.1,2495.7,2.4040935]
[1748835482828,0.7851,2496.1,2495.6,3.01261442]
[1748835483129,0.7851,2496.1,2495.7,2.40412943]
[1748835486024,0.55,2496.0,2495.6,0.60841982]
[1748835486254,2.95389311,2496.0,2495.4,3.51537397]
[1748835486457,3.18466419,2495.9,2495.4,3.51537397]
[1748835487080,3.18466419,2495.9,2495.4,1.111]
[1748835487242,0.7807,2495.9,2495.4,1.111]
[1748835487438,0.7807,2495.9,2495.5,2.40432102]
[1748835487639,0.7807,2495.9,2495.5,2.99631014]
[1748835487855,0.7807,2495.9,2495.7,2.40404713]
[1748835488252,0.7807,2495.9,2495.6,2.40422043]
[1748835488575,3.18488449,2495.7,2495.1,3.52095383]
[1748835488752,3.18488449,2495.7,2495.1,1.1162798]
[1748835488955,2.95423974,2495.6,2495.1,3.52096431]
[1748835489144,0.55,2495.6,2495.1,3.52096431]
[1748835489476,0.55,2495.6,2495.1,1.1162798]
[1748835489646,0.7807,2495.7,2495.1,1.1162798]
[1748835489647,0.7807,2495.7,2495.2,1.86892798]
[1748835489846,0.7807,2495.7,2495.3,2.40445805]
[1748835490041,0.7807,2495.7,2495.2,3.49211561]
[1748835490242,0.55,2495.6,2495.2,2.40460127]
[1748835490466,0.7807,2495.7,2495.1,1.1162798]
[1748835490671,0.7807,2495.7,2495.3,2.40446492]
[1748835491583,0.7807,2495.7,2495.4,2.40440887]
[1748835492667,8.8089,2495.9,2495.4,2.40436957]
[1748835492993,11.21284927,2495.9,2495.4,2.40436957]
[1748835493178,11.21284927,2495.9,2495.3,2.40447237]
[1748835493377,0.8089,2495.9,2495.4,2.40442414]
[1748835493576,0.8089,2495.9,2495.3,0.77948267]
[1748835493577,0.8089,2495.9,2495.6,2.40417148]
[1748835493955,0.8089,2496.1,2495.6,0.782]
[1748835494155,0.8089,2496.3,2495.7,2.40413511]
[1748835494473,0.8089,2496.3,2495.8,2.72260631]
[1748835494673,0.8089,2496.3,2495.8,0.31861351]
[1748835494860,3.21247315,2496.3,2495.8,2.722597]
[1748835495190,2.40366609,2496.2,2495.8,0.31861351]
[1748835495400,0.8089,2496.3,2495.7,3.51509093]
[1748835495622,3.59143023,2496.3,2495.7,3.51509093]
[1748835495892,2.40365681,2496.2,2495.7,3.51509093]
[1748835496198,2.40376872,2496.1,2495.7,1.111]
[1748835496352,2.95370236,2496.2,2495.7,1.111]
[1748835496749,2.40376609,2496.1,2495.7,1.111]
[1748835496984,0.55,2496.2,2495.7,1.111]
[1748835497158,0.8157,2496.1,2495.7,1.111]
[1748835497365,3.21948705,2496.1,2495.7,1.111]
[1748835497670,0.8157,2496.1,2495.7,1.111]
[1748835498692,0.8157,2496.1,2495.7,3.5150843]
[1748835499356,3.21946668,2496.1,2495.7,1.111]
[1748835499555,0.8157,2496.1,2495.7,3.51512632]
[1748835499792,0.8157,2496.1,2495.7,1.70294312]
[1748835499991,0.37938098,2496.3,2495.9,2.40386183]
[1748835500155,8.8157,2496.4,2495.9,2.40386183]
[1748835500485,0.3793833,2496.3,2495.9,2.40386183]
[1748835500699,11.21916782,2496.4,2495.9,2.40386183]
[1748835500900,0.37945233,2496.3,2496.0,2.40383926]
[1748835501104,8.8157,2496.4,2496.0,2.40383926]
[1748835501596,0.3794692,2496.3,2496.0,2.40383926]
[1748835501912,8.8157,2496.4,2496.0,2.96671977]
[1748835502053,0.8157,2496.4,2496.0,2.96671977]
[1748835502774,0.8261,2496.7,2496.2,2.40359064]
[1748835502979,0.37955662,2496.6,2496.2,2.40359064]
[1748835503199,0.37955662,2496.6,2496.0,2.96669548]
[1748835503200,0.37955662,2496.5,2496.1,2.4036816]
[1748835503363,8.0,2496.6,2496.2,2.40364177]
[1748835503569,0.37951389,2496.5,2496.2,2.40364177]
[1748835503802,8.0,2496.6,2496.2,2.40364177]
[1748835504104,0.37955655,2496.5,2496.1,2.94071632]
[1748835504297,8.0,2496.6,2496.1,2.94071632]
[1748835504503,0.37952019,2496.5,2496.2,2.40363736]
[1748835504699,0.8261,2496.7,2496.3,2.40350716]
[1748835504892,0.3795578,2496.6,2496.3,2.40350716]
[1748835505096,8.8261,2496.7,2496.3,2.40350716]
[1748835505392,0.37956191,2496.6,2496.3,2.40350716]
[1748835505580,0.8261,2496.7,2496.4,0.24035072]
[1748835505899,0.8261,2496.7,2496.2,2.40365355]
[1748835506105,0.8261,2496.7,2496.3,2.40353122]
[1748835506307,0.8261,2496.7,2496.2,2.40361343]
[1748835506766,0.8261,2496.7,2496.3,2.40349496]
[1748835508414,1.20551721,2496.7,2496.3,2.40349496]
[1748835508725,0.8261,2496.7,2496.3,2.93791999]
[1748835510507,0.37926573,2496.8,2496.3,2.93791999]
[1748835510727,2.78224099,2497.0,2496.4,2.4033738]
[1748835511032,3.22024071,2496.8,2496.3,0.53442503]
[1748835511331,3.22024071,2496.8,2496.2,2.40360081]
[1748835511538,3.5995371,2496.8,2496.3,2.40355141]
[1748835511721,1.19639639,2496.8,2496.3,2.40355141]
[1748835512035,0.8171,2496.8,2496.4,2.40343259]
[1748835512634,8.0,2496.9,2496.6,2.40325461]
[1748835512933,3.23209509,2497.0,2496.6,0.55810051]
[1748835513297,0.8292,2497.0,2496.6,0.55810051]
[1748835513830,3.23210144,2497.0,2496.6,0.55810051]
[1748835514234,0.8292,2497.0,2496.6,0.55810051]
[1748835514600,0.787,2496.6,2496.2,2.40360536]
[1748835514828,0.787,2496.6,2496.3,2.40355199]
[1748835515140,0.787,2496.8,2496.3,2.40351813]
[1748835515837,0.787,2496.8,2496.2,2.40363818]
[1748835516013,0.787,2496.8,2496.3,0.32164382]
[1748835516210,0.787,2496.8,2496.4,2.40338003]
[1748835516622,0.827,2497.0,2496.4,2.403425]
[1748835516988,0.55,2496.9,2496.4,2.40339344]
[1748835517732,3.23022607,2496.7,2496.1,3.21649042]
[1748835517942,3.23022607,2496.7,2496.1,2.40369042]
[1748835518139,0.827,2496.7,2496.2,0.48075355]
[1748835518340,0.827,2496.7,2496.3,2.40354366]
[1748835518547,0.827,2496.7,2496.3,2.40347868]
[1748835519246,0.827,2496.7,2496.2,2.40361142]
[1748835519442,0.827,2496.7,2495.9,0.8055]
[1748835519443,0.827,2496.7,2496.1,2.40373575]
[1748835519667,0.827,2496.7,2495.9,0.8055]
[1748835519947,0.827,2496.7,2496.3,2.40354363]
[1748835520444,0.827,2496.7,2496.2,2.40360649]
[1748835520609,3.23017372,2496.7,2496.2,2.40360649]
[1748835521762,0.827,2496.7,2496.0,0.73825208]
[1748835522056,0.827,2496.7,2496.2,2.40360212]
[1748835522259,0.827,2496.7,2496.2,2.95816211]
[1748835522559,1.20591841,2496.7,2496.2,2.95816211]
[1748835522760,1.20615273,2496.7,2496.3,2.40353254]
[1748835522919,0.827,2496.7,2496.3,2.40353254]
[1748835523320,0.827,2496.7,2496.4,2.40338577]
[1748835523529,0.827,2496.7,2496.2,2.95819643]
[1748835523530,0.827,2496.7,2496.5,0.24033858]
[1748835523823,6.03335752,2496.9,2496.4,2.40337355]
[1748835524060,2.82313112,2496.7,2496.2,0.55455999]
[1748835524234,2.82313112,2496.7,2496.2,2.40360338]
[1748835525258,5.22630896,2496.7,2496.2,2.40360626]
[1748835525461,2.82313112,2496.7,2496.1,2.40368908]
[1748835525656,0.8069,2496.6,2496.1,2.40368908]
[1748835525837,2.82313112,2496.5,2496.2,0.39608412]
[1748835526761,0.8069,2496.6,2496.2,2.79967312]
[1748835526967,0.8069,2496.6,2496.3,2.40350625]
[1748835527149,2.40346185,2496.4,2495.9,2.403873]
[1748835527321,5.22654516,2496.5,2495.9,2.403873]
[1748835527527,5.22654516,2496.5,2496.0,0.66800002]
[1748835527926,5.22654516,2496.5,2496.0,3.07184067]
[1748835528140,2.82313112,2496.5,2496.1,2.40374882]
[1748835528345,2.82313112,2496.5,2496.0,3.07179827]
[1748835528543,2.40337125,2496.5,2496.0,3.07179827]
[1748835528732,3.21016912,2496.6,2496.1,2.7109209]
[1748835529048,0.8069,2496.6,2496.1,2.7109209]
[1748835529252,0.37958901,2496.5,2496.3,2.40350222]
[1748835529554,5.99476062,2496.8,2496.3,0.59017543]
[1748835529730,0.37973359,2496.7,2496.3,0.59017543]
[1748835530026,0.37973359,2496.6,2496.3,0.59017543]
[1748835530228,5.99476062,2496.8,2496.3,0.59017543]
[1748835530441,0.37984032,2496.7,2496.3,0.59017543]
[1748835530639,0.37984032,2496.6,2496.3,2.99371926]
[1748835530864,3.59163112,2496.8,2496.3,2.99371926]
[1748835531065,0.37984519,2496.7,2496.3,2.99371926]
[1748835531261,0.37984519,2496.6,2496.4,2.78156438]
[1748835531462,3.59163112,2496.8,2496.4,0.37811193]
[1748835531669,0.37991733,2496.7,2496.4,0.37811193]
[1748835531845,3.59163112,2496.8,2496.4,0.37811193]
[1748835531846,0.37991733,2496.6,2496.4,0.37811193]
[1748835532044,3.59163112,2496.8,2496.4,0.37811193]
[1748835532377,0.37995322,2496.7,2496.4,0.37811193]
[1748835532532,0.37995322,2496.6,2496.4,0.37811193]
[1748835532861,5.99470832,2496.8,2496.4,0.37811193]
[1748835533035,0.37996001,2496.7,2496.4,0.37811193]
[1748835533357,0.37996001,2496.6,2496.4,0.37811193]
[1748835533560,5.99470832,2496.8,2496.4,0.37811193]
[1748835533882,0.38000008,2496.7,2496.5,2.40330835]
[1748835534065,2.82313112,2496.9,2496.6,0.51848028]
[1748835534231,0.38000852,2496.8,2496.5,2.40330835]
[1748835534433,0.38000852,2496.7,2496.5,2.40330835]
[1748835534746,2.82313112,2496.9,2496.5,2.40330835]
[1748835534937,0.38004562,2496.8,2496.5,2.40330835]
[1748835535137,0.38004562,2496.7,2496.5,2.40330835]
[1748835535382,2.82313112,2496.9,2496.6,0.27814203]
[1748835535588,0.38001707,2496.8,2496.5,2.40330835]
[1748835535793,0.38001707,2496.7,2496.5,2.40330835]
[1748835536093,2.82313112,2496.9,2496.4,0.37811193]
[1748835536304,0.38001355,2496.8,2496.2,0.7874]
[1748835536473,0.38001355,2496.7,2496.2,0.7874]
[1748835536677,2.82313112,2496.9,2496.4,2.40336548]
[1748835536852,0.3800062,2496.8,2496.4,2.40336548]
[1748835537059,0.3800062,2496.7,2496.4,2.40336548]
[1748835537288,2.82313112,2496.9,2496.5,0.48068619]
[1748835537595,0.37997771,2496.8,2496.4,2.40336548]
[1748835537757,0.37997771,2496.7,2496.2,3.19102319]
[1748835538078,5.22612415,2496.9,2496.2,3.19102319]
[1748835538278,0.379988,2496.8,2496.4,2.40341158]
[1748835538478,0.379988,2496.7,2496.4,2.40341158]
[1748835538692,8.0,2496.9,2496.5,0.48069589]
[1748835538859,0.37998958,2496.8,2496.5,0.48069589]
[1748835539061,0.37998958,2496.7,2496.5,2.88404636]
[1748835539261,8.0,2496.9,2496.5,2.88404636]
[1748835539453,0.37998428,2496.8,2496.5,2.88404636]
[1748835539659,0.37998428,2496.7,2496.6,0.52874956]
[1748835540059,3.6306134,2497.1,2496.6,0.52874956]
[1748835540060,2.82313112,2497.1,2496.6,1.28604956]
[1748835540260,0.37999995,2497.0,2496.6,1.28604956]
[1748835540477,0.37999995,2496.9,2496.7,2.40316582]
[1748835540698,2.82313112,2497.1,2496.8,0.36892154]
[1748835540909,0.38000593,2497.0,2496.8,0.36892154]
[1748835541111,0.38000593,2496.9,2496.8,0.36892154]
[1748835542413,0.7884,2497.3,2496.8,0.36892154]
[1748835542622,0.37991593,2497.2,2497.0,0.7505]
[1748835542784,0.8295,2497.5,2497.0,3.15334219]
[1748835543117,0.37992753,2497.4,2497.1,2.40278296]
[1748835543270,0.37992753,2497.3,2497.1,2.40278296]
[1748835543477,0.8295,2497.5,2497.2,0.3153283]
[1748835543699,0.37975262,2497.4,2497.2,0.3153283]
[1748835543908,0.8295,2497.5,2497.2,0.3153283]
[1748835544716,2.82313112,2497.4,2497.0,3.15334792]
[1748835544874,0.7985,2497.1,2496.6,2.40317742]
[1748835545074,2.82313112,2497.0,2496.6,2.40322029]
[1748835545281,5.22608041,2497.0,2496.7,0.24032203]
[1748835545612,5.22608041,2497.0,2496.5,2.40331493]
[1748835545815,2.82313112,2497.0,2496.5,2.40331493]
[1748835546002,5.22603816,2497.0,2496.5,2.40331493]
[1748835546179,2.82313112,2497.0,2496.6,2.40325255]
[1748835546376,0.7985,2497.1,2496.6,0.8317]
[1748835546716,6.02446775,2497.1,2496.5,2.40331208]
[1748835546880,3.62163112,2497.1,2496.6,0.56384411]
[1748835547081,2.40289839,2497.0,2496.6,0.56384411]
[1748835547476,2.40289839,2497.0,2496.5,2.40334069]
[1748835547892,6.02445505,2497.1,2496.5,2.40334069]
[1748835548429,2.95289136,2497.0,2496.4,0.8317]
[1748835548634,5.22616961,2496.9,2496.4,2.40344665]
[1748835548924,5.22616961,2496.9,2496.4,2.40344583]
[1748835550130,3.74133178,2497.0,2496.4,2.96462394]
[1748835550295,0.37929408,2496.9,2496.4,2.96462394]
[1748835550494,3.74133178,2497.0,2496.4,2.96462394]
[1748835550698,3.16393536,2496.8,2496.1,3.5137216]
[1748835550893,3.16393536,2496.8,2496.3,2.40355713]
[1748835551112,3.54320728,2496.8,2496.3,2.40355713]
[1748835551330,2.40317541,2496.7,2496.2,2.4036407]
[1748835551628,0.37926872,2496.7,2496.3,0.24036407]
[1748835551827,3.16392481,2496.8,2496.3,0.24036407]
[1748835552037,2.40318932,2496.7,2496.2,2.4036407]
[1748835552227,2.78247627,2496.7,2496.2,2.4036407]
[1748835552436,0.37928695,2496.7,2496.2,2.4036407]
[1748835552630,0.55,2496.7,2496.2,2.4036407]
[1748835553734,0.55,2496.7,2496.3,2.40346828]
[1748835553897,0.7608,2496.8,2496.4,2.40340037]
[1748835554830,2.95318137,2496.7,2496.2,2.40363639]
[1748835555039,0.55,2496.7,2496.2,2.40363639]
[1748835555746,0.55,2496.7,2496.3,2.40350194]
[1748835555924,0.7608,2496.8,2496.4,2.40339925]
[1748835556140,0.7608,2496.8,2496.4,2.40339376]
[1748835556908,1.13985511,2496.8,2496.4,2.40339376]
[1748835557104,0.7608,2496.8,2496.4,2.40339376]
[1748835557310,3.16392049,2496.8,2496.2,2.40359692]
[1748835557531,0.92909553,2496.9,2496.4,3.22792311]
[1748835557729,0.55,2496.9,2496.4,2.40342311]
[1748835558004,0.55,2496.9,2496.3,2.40351095]
[1748835558325,3.57026849,2496.8,2496.2,2.83576579]
[1748835558532,2.40318704,2496.7,2496.2,2.83576579]
[1748835558841,0.788,2496.8,2496.3,2.40355555]
[1748835558842,3.19110152,2496.8,2496.3,2.40355555]
[1748835559008,0.788,2496.8,2496.3,0.28357658]
[1748835559210,3.19114157,2496.8,2496.3,2.40355119]
[1748835560411,0.37915293,2496.7,2496.3,2.40355119]
[1748835560615,3.19114157,2496.8,2496.3,2.40355119]
[1748835560811,0.788,2496.8,2496.2,2.87586502]
[1748835561348,0.788,2496.8,2496.4,2.40340645]
[1748835562006,0.788,2496.8,2496.3,2.40352006]
[1748835562210,0.37899926,2496.7,2496.3,2.40352006]
[1748835562410,1.26633987,2497.1,2496.4,1.30013287]
[1748835562668,0.37900745,2497.0,2496.8,2.40299581]
[1748835562812,3.19542008,2497.1,2496.6,2.4032063]
[1748835563739,0.7926,2497.1,2496.7,2.40312487]
[1748835564141,9.3386,2497.3,2496.4,0.7762]
[1748835564338,0.3790469,2497.2,2496.9,2.40291728]
[1748835564530,0.3790469,2497.1,2496.9,2.40291728]
[1748835564729,0.3790469,2497.2,2496.9,2.40291728]
[1748835565053,8.7886,2497.3,2496.9,2.40291728]
[1748835565257,0.37902648,2497.2,2496.9,2.40291728]
[1748835565463,8.7886,2497.3,2496.9,2.40291728]
[1748835565629,0.37901563,2497.2,2496.3,6.99513112]
[1748835565957,8.7614,2497.5,2497.0,2.40282097]
[1748835566137,0.37905122,2497.4,2497.1,2.40277268]
[1748835566343,8.7614,2497.5,2497.0,2.40284255]
[1748835566544,0.37899667,2497.4,2497.0,2.40284255]
[1748835566716,6.99513112,2497.7,2497.2,2.40262125]
[1748835566717,0.77,2497.7,2497.2,2.40262125]
[1748835567076,8.37902285,2497.6,2497.2,0.48055047]
[1748835567252,0.37902285,2497.5,2497.1,2.40274442]
[1748835567457,8.0,2497.6,2497.1,2.40274442]
[1748835567761,0.37893783,2497.5,2497.3,2.40258102]
[1748835568055,0.37893783,2497.6,2497.1,2.40277773]
[1748835568239,11.17228496,2497.7,2497.1,2.40277773]
[1748835568439,0.37885953,2497.6,2497.2,2.96596519]
[1748835568648,11.17228496,2497.7,2497.2,0.56328483]
[1748835568843,0.37885682,2497.6,2497.2,2.96596604]
[1748835569019,8.77,2497.7,2497.3,2.4025729]
[1748835569931,8.77,2497.7,2497.2,2.96593834]
[1748835570126,11.17221304,2497.7,2497.0,3.23005778]
[1748835570328,8.77,2497.7,2497.1,2.40277408]
[1748835570560,2.40233777,2497.6,2497.0,0.8272]
[1748835570719,0.77,2497.7,2496.8,1.9372]
[1748835570917,5.99536866,2497.7,2496.8,1.9372]
[1748835571160,0.77,2497.7,2497.2,0.8]
[1748835571337,0.01,2497.9,2497.6,2.40230353]
[1748835572064,0.01,2497.9,2497.5,2.4023604]
[1748835572633,0.01,2497.9,2497.2,0.8]
[1748835572839,0.01,2497.9,2497.6,2.40225643]
[1748835573153,0.01,2497.9,2497.6,2.88272518]
[1748835574057,0.01,2497.9,2497.6,0.48046875]
[1748835574554,2.82313112,2497.7,2497.3,2.40258497]
[1748835574756,0.7598,2497.6,2497.0,0.7654]
[1748835574962,0.7598,2497.6,2497.1,2.40273443]
[1748835575145,0.7598,2497.6,2497.1,2.40272804]
[1748835575483,0.7598,2497.6,2497.2,0.55709969]
[1748835575685,3.16191595,2497.8,2497.3,2.4025335]
[1748835575851,0.7598,2497.8,2497.3,2.4025335]
[1748835576047,0.7598,2497.8,2497.4,2.40244364]
[1748835576770,2.83313112,2497.9,2497.8,2.40211386]
[1748835576771,0.01,2497.9,2497.8,2.40211386]
[1748835576974,0.01,2497.9,2497.8,0.24021139]
[1748835577550,0.01,2497.9,2497.8,2.64232525]
[1748835577751,0.01,2497.9,2497.8,3.43842525]
[1748835579051,0.01,2497.9,2497.8,0.24021139]
[1748835580060,0.01,2497.9,2497.4,1.9051]
[1748835580280,0.01,2497.9,2497.5,2.40234173]
[1748835581459,0.01,2497.9,2497.5,2.4024024]
[1748835582112,0.01,2497.9,2497.6,2.40229441]
[1748835582479,0.01,2497.9,2497.7,2.40215828]
[1748835582678,0.01,2497.9,2497.7,2.88261345]
[1748835582879,0.01,2497.9,2497.7,2.40216027]
[1748835583080,0.01,2497.9,2497.6,2.40225947]
[1748835583298,0.01,2497.9,2497.5,2.40233409]
[1748835583299,0.01,2497.9,2497.7,2.40220355]
[1748835584697,0.01,2497.9,2497.4,1.109]
[1748835584889,0.01,2497.9,2497.7,2.40220208]
[1748835585202,0.01,2497.9,2497.7,2.9622723]
[1748835586293,0.01,2497.9,2497.8,2.40211386]
[1748835587091,0.01,2497.9,2497.7,2.9622361]
[1748835587292,0.803,2497.9,2497.7,0.56007022]
[1748835587589,3.62613112,2497.9,2497.3,3.1969892]
[1748835587939,3.62613112,2497.9,2497.5,2.40235464]
[1748835588493,3.62613112,2497.9,2497.5,2.40239536]
[1748835588786,3.62613112,2497.9,2497.4,2.40244366]
[1748835588999,3.62613112,2497.9,2497.5,2.96232926]
[1748835589323,3.62613112,2497.9,2497.5,0.5599423]
[1748835589531,6.02818117,2497.9,2497.5,0.5599423]
[1748835589691,3.62613112,2497.9,2497.5,0.5599423]
[1748835590928,6.02817752,2497.9,2497.5,0.5599423]
[1748835592226,3.62613112,2497.9,2497.5,2.96232214]
[1748835592432,0.803,2497.9,2497.6,0.29623221]
[1748835592642,0.01,2497.9,2497.6,2.69849133]
[1748835592805,0.01,2497.9,2497.7,3.22554044]
[1748835593123,0.01,2497.9,2497.8,2.40211386]
[1748835593324,0.01,2497.9,2497.8,2.99450251]
[1748835593506,0.01,2497.9,2497.8,0.59238865]
[1748835593933,0.01,2497.9,2497.6,0.29623221]
[1748835594116,0.01,2497.9,2497.6,2.69852961]
[1748835594314,0.01,2497.9,2497.6,2.69852395]
[1748835594502,0.01,2497.9,2497.3,2.40257974]